bitfinex/quotes_BTCUSD_20251011
["timestamp","ask_amount","ask_price","bid_price","bid_amount"]
[1760161932976,0.0011491,112820.0,112810.0,0.94541618]
[1760161933197,8.881e-05,112830.0,112820.0,0.20742543]
[1760161933390,0.0002,112860.0,112850.0,0.2073783]
[1760161933595,0.00070083,112860.0,112850.0,0.2919783]
[1760161935508,0.00070083,112860.0,112850.0,0.2479783]
[1760161936754,0.34,112870.0,112850.0,0.2479783]
[1760161936923,0.51732976,112870.0,112850.0,0.2479783]
[1760161937871,0.51832976,112870.0,112850.0,0.2479783]
[1760161938196,0.51932976,112870.0,112850.0,0.2479783]
[1760161939138,0.00229718,112860.0,112850.0,0.2479783]
[1760161939747,0.00229718,112860.0,112850.0,0.2097583]
[1760161940951,0.00229718,112860.0,112850.0,0.2496583]
[1760161942369,0.00693877,112860.0,112850.0,0.2496583]
[1760161944174,0.00693877,112860.0,112850.0,0.2097583]
[1760161946843,0.00693877,112860.0,112850.0,0.2496583]
[1760161948028,0.00693877,112860.0,112850.0,0.2097583]
[1760161948285,0.00693877,112860.0,112850.0,0.2107583]
[1760161949047,0.00693877,112860.0,112850.0,0.2506583]
[1760161951114,0.00693877,112860.0,112850.0,0.2107583]
[1760161951598,0.00693877,112860.0,112850.0,0.2506583]
[1760161951778,0.00693877,112860.0,112850.0,0.2107583]
[1760161952867,0.18414947,112860.0,112850.0,0.0775319]
[1760161953144,0.18414947,112860.0,112850.0,0.001]
[1760161956607,1.01968761,112860.0,112850.0,0.001]
[1760161957336,1.04637108,112860.0,112850.0,0.001]
[1760161957535,0.51724211,112840.0,112830.0,0.005]
[1760161958698,1.01278025,112840.0,112830.0,0.005]
[1760161959187,1.03946915,112840.0,112830.0,0.005]
[1760161959324,1.06446914,112840.0,112830.0,0.005]
[1760161959574,0.34,112810.0,112800.0,0.13428408]
[1760161959773,0.51728924,112810.0,112800.0,0.13428408]
[1760161960217,0.51728924,112810.0,112800.0,0.06385224]
[1760161960769,0.51728924,112810.0,112800.0,0.06435307]
[1760161961615,1.01282738,112810.0,112800.0,0.06435307]
[1760161962194,1.01282738,112810.0,112800.0,0.00050083]
[1760161962598,1.0395241,112810.0,112800.0,0.00050083]
[1760161962799,1.06452409,112810.0,112800.0,0.00050083]
[1760161963202,1.06452409,112810.0,112800.0,1e-08]
[1760161964032,0.64498595,112810.0,112800.0,1e-08]
[1760161964230,0.54498596,112810.0,112800.0,0.0025229]
[1760161964437,0.02769672,112810.0,112800.0,0.07295474]
[1760161964639,0.02769672,112810.0,112800.0,0.18318698]
[1760161964640,0.20498596,112810.0,112800.0,0.18318698]
[1760161964835,0.54598596,112810.0,112800.0,0.06637514]
[1760161965258,0.20398596,112810.0,112800.0,0.06637514]
[1760161965438,0.36669672,112810.0,112800.0,0.2702601]
[1760161965825,0.54498596,112810.0,112800.0,0.15419514]
[1760161966001,0.54498596,112810.0,112800.0,0.06637514]
[1760161967134,0.54398596,112810.0,112800.0,0.0025229]
[1760161968539,0.36669672,112810.0,112800.0,0.0291029]
[1760161968724,0.36669672,112810.0,112800.0,0.11275514]
[1760161968926,0.54398596,112810.0,112800.0,0.06637514]
[1760161971304,0.54398596,112810.0,112800.0,0.0025229]
[1760161971509,0.36669672,112810.0,112800.0,0.15202514]
[1760161971867,0.54398596,112810.0,112800.0,0.11197514]
[1760161972306,0.18610833,112840.0,112810.0,0.17728147]
[1760161972505,0.17725831,112830.0,112820.0,0.08261122]
[1760161972802,0.51725831,112830.0,112820.0,0.10916122]
[1760161973003,0.54394427,112830.0,112820.0,0.10916122]
[1760161973818,0.54394427,112830.0,112820.0,0.06356122]
[1760161973960,0.51727353,112820.0,112810.0,0.08261122]
[1760161974146,0.51727353,112820.0,112810.0,0.10916122]
[1760161974798,0.34,112820.0,112810.0,0.10916122]
[1760161975001,0.36668596,112820.0,112810.0,0.28645046]
[1760161975382,0.36668596,112820.0,112810.0,0.22288924]
[1760161975583,0.36668596,112820.0,112810.0,0.2864781]
[1760161976233,0.54395949,112820.0,112810.0,0.10918886]
[1760161976434,0.54395949,112820.0,112810.0,0.85221814]
[1760161976435,0.36668596,112820.0,112810.0,0.85221814]
[1760161976715,0.1772429,112840.0,112820.0,0.20741013]
[1760161976894,0.54392577,112840.0,112830.0,0.02655]
[1760161977108,0.54392577,112840.0,112830.0,0.0456]
[1760161977413,0.20392577,112840.0,112830.0,0.0456]
[1760161977620,0.54392577,112840.0,112830.0,0.0456]
[1760161977917,0.54392577,112840.0,112820.0,0.29144257]
[1760161978084,0.54392577,112840.0,112820.0,0.29006904]
[1760161978283,0.54392577,112840.0,112820.0,0.33011904]
[1760161978533,0.17725782,112830.0,112820.0,0.15284551]
[1760161978737,0.34,112840.0,112830.0,0.26290782]
[1760161978970,0.51724211,112840.0,112830.0,0.14926107]
[1760161979493,0.54392501,112840.0,112830.0,0.14926107]
[1760161979838,0.54392501,112840.0,112830.0,0.10921107]
[1760161980021,0.54392501,112840.0,112830.0,0.14926107]
[1760161981326,0.54376126,112840.0,112830.0,0.08565]
[1760161981528,0.54376126,112840.0,112830.0,0.0456]
[1760161981793,0.17725782,112830.0,112820.0,0.11281297]
[1760161981965,0.17725782,112830.0,112820.0,0.13936297]
[1760161982206,0.17725782,112830.0,112820.0,0.0456]
[1760161982414,0.51707836,112840.0,112820.0,0.32653383]
[1760161982614,0.51707836,112840.0,112830.0,0.01905]
[1760161982835,0.51707836,112840.0,112830.0,0.0456]
[1760161983332,0.54376126,112840.0,112830.0,0.04639901]
[1760161983529,0.54376126,112840.0,112830.0,0.00079901]
[1760161985317,0.54376126,112840.0,112830.0,0.04639901]
[1760161985469,0.54376126,112840.0,112830.0,0.00079901]
[1760161988181,0.54376126,112840.0,112820.0,0.06361107]
[1760161988182,0.17725782,112830.0,112820.0,0.02041008]
[1760161988376,0.34,112820.0,112810.0,0.25576121]
[1760161988577,0.34,112820.0,112810.0,0.32236121]
[1760161988976,0.34,112820.0,112810.0,0.30195113]
[1760161989559,0.34,112820.0,112810.0,0.30295113]
[1760161994056,0.51727353,112820.0,112810.0,0.1168019]
[1760161994256,0.34,112820.0,112810.0,0.29409114]
[1760161995895,0.36668461,112830.0,112820.0,0.20742543]
[1760161996193,0.36668461,112830.0,112820.0,0.29091543]
[1760161996356,0.54394243,112830.0,112820.0,0.1136419]
[1760161996555,0.54394243,112830.0,112820.0,0.0766119]
[1760161997175,0.36668461,112830.0,112820.0,0.29091543]
[1760161998407,0.36668461,112830.0,112820.0,0.37071133]
[1760162000044,0.34,112830.0,112820.0,0.86624947]
[1760162000419,0.34,112830.0,112820.0,0.37128582]
[1760162000621,0.34,112830.0,112820.0,0.86682396]
[1760162000826,0.34,112830.0,112820.0,0.37128582]
[1760162001307,0.34,112830.0,112820.0,0.33425582]
[1760162001892,0.34,112830.0,112820.0,0.37128582]
[1760162002464,0.02763003,112840.0,112820.0,0.78702806]
[1760162002707,0.00094766,112840.0,112830.0,0.29086413]
[1760162002936,0.00094766,112840.0,112830.0,0.32789413]
[1760162003153,0.00094766,112840.0,112830.0,0.29089972]
[1760162005077,0.02762776,112840.0,112830.0,0.78643786]
[1760162005774,0.02762776,112840.0,112830.0,0.29089972]
[1760162007989,0.36762776,112840.0,112830.0,0.29089972]
[1760162014942,0.36762776,112840.0,112830.0,0.40239162]
[1760162015344,0.34094766,112840.0,112830.0,0.40239162]
[1760162018851,0.34094766,112840.0,112830.0,0.2251338]
[1760162019045,0.34094766,112840.0,112830.0,0.48212717]
[1760162019178,0.34094766,112840.0,112830.0,0.37063527]
[1760162019519,0.34094766,112840.0,112830.0,0.29089972]
[1760162021180,0.02667879,112850.0,112840.0,0.17724211]
[1760162021422,0.02667879,112850.0,112840.0,0.23555211]
[1760162021587,0.02725307,112850.0,112840.0,0.26157211]
[1760162022299,0.0277539,112850.0,112840.0,0.26157211]
[1760162022503,0.00107511,112850.0,112840.0,0.29172401]
[1760162025936,0.00107511,112850.0,112840.0,0.24772401]
[1760162027516,0.34107511,112850.0,112840.0,0.24772401]
[1760162027897,0.51830151,112850.0,112830.0,0.2028133]
[1760162028227,0.54497968,112850.0,112830.0,0.2428333]
[1760162028396,0.54497968,112850.0,112840.0,0.02538]
[1760162029303,0.54497968,112850.0,112840.0,0.04449]
[1760162030579,0.54497968,112850.0,112840.0,0.08328]
[1760162030777,0.36775328,112850.0,112840.0,0.26052211]
[1760162030981,0.54497968,112850.0,112840.0,0.26052211]
[1760162031321,0.36775328,112850.0,112840.0,0.26052211]
[1760162031481,0.54497968,112850.0,112840.0,0.08328]
[1760162031819,0.54497968,112850.0,112840.0,0.04449]
[1760162032163,0.54497968,112850.0,112830.0,0.3213357]
[1760162033531,0.17724211,112840.0,112830.0,0.27175297]
[1760162033829,0.20390457,112850.0,112830.0,0.29643297]
[1760162034434,0.17724211,112840.0,112830.0,0.05023768]
[1760162034792,0.20392394,112840.0,112830.0,0.05023768]
[1760162035552,0.54392394,112840.0,112830.0,0.08902768]
[1760162035750,0.36668183,112840.0,112830.0,0.2662855]
[1760162037347,0.36668183,112840.0,112830.0,0.2964374]
[1760162039515,0.34,112840.0,112830.0,0.2964374]
[1760162039916,0.34,112840.0,112830.0,0.37616848]
[1760162041796,0.34,112840.0,112830.0,0.2964374]
[1760162042744,0.34,112840.0,112830.0,0.37616848]
[1760162043558,0.34,112840.0,112830.0,0.2964374]
[1760162043736,0.34,112840.0,112830.0,0.4079293]
[1760162049143,0.34,112840.0,112830.0,0.23067148]
[1760162049144,0.51724211,112840.0,112830.0,0.23067148]
[1760162049347,0.34,112840.0,112830.0,0.4079293]
[1760162049551,0.51724211,112840.0,112830.0,0.23067148]
[1760162049755,0.51724211,112840.0,112830.0,0.16172958]
[1760162050226,0.54392297,112840.0,112830.0,0.05023768]
[1760162050594,0.36668086,112840.0,112830.0,0.2274955]
[1760162050796,0.34,112840.0,112830.0,0.2964374]
[1760162050996,0.34,112840.0,112830.0,0.4079293]
[1760162053152,0.34,112840.0,112830.0,0.4089293]
[1760162053759,0.34,112840.0,112830.0,0.3787774]
[1760162055292,0.51724211,112840.0,112830.0,0.20151958]
[1760162055489,0.34,112840.0,112830.0,0.3787774]
[1760162055795,0.36668055,112840.0,112830.0,0.3787774]
[1760162055990,0.34,112840.0,112830.0,0.3787774]
[1760162057190,0.51724211,112840.0,112830.0,0.16272958]
[1760162057619,0.54376301,112840.0,112830.0,0.16272958]
[1760162058353,0.54376301,112840.0,112830.0,0.05123768]
[1760162058536,0.54376301,112840.0,112830.0,0.13107589]
[1760162060868,0.54376301,112840.0,112830.0,0.08678589]
[1760162061688,0.54376301,112840.0,112830.0,0.11376589]
[1760162061899,0.54376301,112840.0,112830.0,0.08678589]
[1760162062310,0.54376301,112840.0,112830.0,0.00594768]
[1760162063123,1.19666264,112840.0,112830.0,0.00594768]
[1760162064039,1.19766264,112840.0,112830.0,0.00594768]
[1760162064239,0.54476301,112840.0,112830.0,0.00594768]
[1760162064440,0.54476301,112840.0,112830.0,0.03292768]
[1760162064640,0.54476301,112840.0,112830.0,0.00594768]
[1760162065642,0.54376301,112840.0,112830.0,0.00594768]
[1760162066073,0.54476301,112840.0,112830.0,0.00594768]
[1760162071698,0.31550646,112840.0,112830.0,0.00594768]
[1760162071914,0.20492361,112840.0,112830.0,0.00594768]
[1760162073797,0.54492361,112840.0,112830.0,0.00594768]
[1760162076278,0.54492361,112840.0,112830.0,0.05294768]
[1760162076523,0.54492361,112840.0,112830.0,0.00594768]
[1760162079149,1.04081461,112840.0,112830.0,0.00594768]
[1760162079472,1.05733967,112840.0,112830.0,0.00594768]
[1760162080016,1.05733967,112840.0,112790.0,0.06048]
[1760162080017,0.51730496,112800.0,112790.0,0.02002]
[1760162080444,0.51730496,112800.0,112790.0,0.02289299]
[1760162080957,0.51730496,112800.0,112790.0,0.09033299]
[1760162080958,0.54399738,112800.0,112790.0,0.09033299]
[1760162081183,0.5035979,112800.0,112790.0,0.09033299]
[1760162081397,5e-05,112800.0,112790.0,0.26765367]
[1760162081705,5e-05,112800.0,112790.0,0.29880557]
[1760162082876,5e-05,112800.0,112790.0,0.79469657]
[1760162083302,5e-05,112800.0,112790.0,0.29880557]
[1760162084064,5e-05,112800.0,112790.0,0.79569657]
[1760162087726,5e-05,112800.0,112790.0,0.87553478]
[1760162089569,5e-05,112800.0,112790.0,0.37964378]
[1760162089785,5e-05,112800.0,112790.0,0.87553478]
[1760162091135,9.81e-06,112800.0,112790.0,0.87553478]
[1760162091375,9.81e-06,112800.0,112790.0,0.79569657]
[1760162092939,0.0046514,112800.0,112790.0,0.79569657]
[1760162094243,9.81e-06,112800.0,112790.0,0.79569657]
[1760162094709,0.03368106,112820.0,112810.0,0.20744114]
[1760162094874,0.03368106,112820.0,112810.0,0.83465785]
[1760162095083,0.03368106,112820.0,112810.0,0.90160785]
[1760162096474,0.03368106,112820.0,112810.0,0.78993297]
[1760162097536,0.03368106,112820.0,112810.0,0.90160785]
[1760162098771,0.03368106,112820.0,112810.0,0.90260785]
[1760162100016,0.03368106,112820.0,112810.0,0.9053313]
[1760162101874,0.03368106,112820.0,112810.0,1.3053313]
[1760162104699,0.03368106,112820.0,112810.0,0.9053313]
[1760162105058,0.00660295,112820.0,112810.0,0.9053313]
[1760162105957,0.03169366,112840.0,112830.0,0.20740972]
[1760162106152,0.03169366,112840.0,112830.0,0.30620806]
[1760162106390,0.03169366,112840.0,112830.0,0.37315806]
[1760162108237,0.03169366,112840.0,112830.0,0.29350972]
[1760162109513,0.03169366,112840.0,112830.0,0.29450972]
[1760162111447,0.03169366,112840.0,112830.0,0.37473237]
[1760162112189,0.03169366,112840.0,112830.0,0.29508403]
[1760162112331,0.03169366,112840.0,112830.0,0.37473237]
[1760162113847,0.02705207,112840.0,112830.0,0.37473237]
[1760162115866,0.02705207,112840.0,112830.0,0.29508403]
[1760162120090,0.02605207,112840.0,112830.0,0.29408403]
[1760162120327,0.02605207,112840.0,112830.0,0.37375693]
[1760162121876,0.02605207,112840.0,112830.0,0.29408403]
[1760162122646,0.02605207,112840.0,112830.0,0.3737965]
[1760162125382,0.02605207,112840.0,112830.0,0.29408403]
[1760162126528,0.005,112850.0,112830.0,0.29408403]
[1760162126758,0.005,112850.0,112840.0,0.09910812]
[1760162126980,0.03167642,112850.0,112840.0,0.13756812]
[1760162127221,0.37225071,112850.0,112840.0,0.16208812]
[1760162127642,0.54947711,112850.0,112840.0,0.16208812]
[1760162131804,0.37225071,112850.0,112840.0,0.16208812]
[1760162132249,0.54947711,112850.0,112840.0,0.16208812]
[1760162132821,0.54947711,112850.0,112840.0,0.12362812]
[1760162133619,0.54806802,112850.0,112840.0,0.12362812]
[1760162134341,0.54806802,112850.0,112840.0,0.16208812]
[1760162134752,0.54806802,112850.0,112840.0,0.12362812]
[1760162135131,0.54806802,112850.0,112840.0,0.16208812]
[1760162135708,0.54806802,112850.0,112840.0,0.12362812]
[1760162135867,0.54806802,112850.0,112840.0,0.16208812]
[1760162139087,0.35840809,112850.0,112840.0,0.16208812]
[1760162139286,0.35840809,112850.0,112840.0,0.08232]
[1760162139488,0.3850866,112850.0,112840.0,0.08232]
[1760162142098,0.2078602,112850.0,112840.0,0.08232]
[1760162143527,0.3850866,112850.0,112840.0,0.08232]
[1760162144267,0.2078602,112850.0,112840.0,0.25956211]
[1760162144448,0.2078602,112850.0,112840.0,0.08232]
[1760162145787,0.2078602,112850.0,112840.0,0.28971401]
[1760162145989,0.02667851,112850.0,112840.0,0.28971401]
[1760162146328,0.00464159,112870.0,112860.0,0.0301519]
[1760162146488,0.03131158,112870.0,112860.0,0.0492319]
[1760162146708,0.37245992,112870.0,112860.0,0.1115619]
[1760162147297,0.54965492,112870.0,112860.0,0.08141]
[1760162147497,0.5497437,112870.0,112860.0,0.08141]
[1760162147940,0.54510211,112870.0,112860.0,0.04406]
[1760162148928,0.54510211,112870.0,112860.0,0.01908]
[1760162149272,0.54510211,112870.0,112860.0,0.08141]
[1760162149475,0.36790711,112870.0,112860.0,0.08141]
[1760162149696,0.54510211,112870.0,112860.0,0.08141]
[1760162151536,0.54510211,112870.0,112860.0,0.04406]
[1760162154663,0.5172107,112860.0,112850.0,0.09884812]
[1760162155063,0.5172107,112860.0,112850.0,0.01908]
[1760162155268,0.1772264,112850.0,112840.0,0.10005563]
[1760162155547,0.1772264,112850.0,112840.0,0.12438563]
[1760162155791,0.1772264,112850.0,112840.0,0.16109563]
[1760162155990,0.20390469,112850.0,112840.0,0.16109563]
[1760162156196,0.54390469,112850.0,112840.0,0.12438563]
[1760162156403,0.50400543,112850.0,112840.0,0.08132751]
[1760162156615,0.53068372,112850.0,112840.0,0.08132751]
[1760162157178,0.53068372,112850.0,112840.0,0.08232751]
[1760162157769,0.52970605,112850.0,112840.0,0.08232751]
[1760162161171,0.20390469,112850.0,112840.0,0.08232751]
[1760162163562,0.20390469,112850.0,112840.0,0.04561751]
[1760162163801,0.54390469,112850.0,112840.0,0.00194751]
[1760162164004,0.54390469,112850.0,112840.0,0.08108751]
[1760162164200,0.54390469,112850.0,112840.0,0.04437751]
[1760162164361,0.54390469,112850.0,112840.0,0.08108751]
[1760162165550,0.54390469,112850.0,112840.0,0.00194751]
[1760162165551,1.1967604,112850.0,112840.0,0.00194751]
[1760162166381,0.54390469,112850.0,112840.0,0.00194751]
[1760162166607,0.54390469,112850.0,112840.0,0.00094751]
[1760162167021,0.54490469,112850.0,112840.0,0.02527751]
[1760162167958,0.54490469,112850.0,112840.0,0.08008751]
[1760162168108,0.54490469,112850.0,112840.0,0.15985563]
[1760162168527,0.54590469,112850.0,112840.0,0.15985563]
[1760162168734,0.54490469,112850.0,112840.0,0.15985563]
[1760162169399,0.54390469,112850.0,112840.0,0.15985563]
[1760162170949,0.54390469,112850.0,112840.0,0.12314563]
[1760162174470,0.54390469,112850.0,112840.0,0.15967563]
[1760162175586,0.54390469,112850.0,112840.0,0.12314563]
[1760162175756,0.54390469,112850.0,112840.0,0.08071563]
[1760162175962,1.1967604,112850.0,112840.0,0.00094751]
[1760162176195,1.6379604,112850.0,112840.0,0.00094751]
[1760162176559,1.1967604,112850.0,112840.0,0.00094751]
[1760162178307,0.51725782,112830.0,112820.0,0.07976812]
[1760162178557,1.17011353,112830.0,112820.0,0.07976812]
[1760162178721,1.17011353,112830.0,112820.0,0.08091705]
[1760162179120,1.19679951,112830.0,112820.0,0.08091705]
[1760162179554,1.19679951,112830.0,112820.0,0.08141788]
[1760162179803,1.19679951,112830.0,112820.0,0.00164976]
[1760162181830,1.19779951,112830.0,112820.0,0.00164976]
[1760162182035,1.19879951,112830.0,112820.0,0.00164976]
[1760162182815,1.19879951,112830.0,112810.0,0.07976812]
[1760162182816,0.51727353,112820.0,112810.0,0.07976812]
[1760162183052,0.51728924,112810.0,112800.0,0.00016301]
[1760162183266,1.17014495,112810.0,112800.0,0.00016301]
[1760162183627,1.17014495,112810.0,112800.0,0.00131225]
[1760162183833,1.19683599,112810.0,112800.0,0.00131225]
[1760162187571,0.51732068,112790.0,112780.0,0.005]
[1760162187767,1.17017639,112790.0,112780.0,0.005]
[1760162188551,1.19687546,112790.0,112780.0,0.005]
[1760162192984,1.19687546,112790.0,112780.0,0.00614954]
[1760162193628,1.04060821,112790.0,112780.0,0.00614954]
[1760162197570,0.51739932,112740.0,112730.0,0.02455]
[1760162197891,0.51739932,112740.0,112730.0,0.09498184]
[1760162198006,0.51739932,112740.0,112730.0,0.15925723]
[1760162198212,0.36670691,112740.0,112730.0,0.26624045]
[1760162198474,0.36670691,112740.0,112730.0,0.08882539]
[1760162198724,0.34,112740.0,112730.0,0.26632926]
[1760162199310,0.51739932,112740.0,112730.0,0.0889142]
[1760162199668,0.54410307,112740.0,112730.0,0.0889142]
[1760162202762,0.51739932,112740.0,112730.0,0.0889142]
[1760162203137,0.52203733,112740.0,112730.0,0.0889142]
[1760162206792,0.51739932,112740.0,112730.0,0.0889142]
[1760162208516,0.34,112740.0,112730.0,0.26632926]
[1760162208812,0.34,112740.0,112730.0,0.37624928]
[1760162209316,0.51739932,112740.0,112730.0,0.16868232]
[1760162209818,0.51739932,112740.0,112730.0,0.0889142]
[1760162210362,0.51739932,112740.0,112730.0,0.16868232]
[1760162210688,0.51739932,112740.0,112730.0,0.16968232]
[1760162213268,0.51739932,112740.0,112730.0,0.0899142]
[1760162215283,0.51739932,112740.0,112730.0,0.20158908]
[1760162218177,0.5029612,112740.0,112730.0,0.20158908]
[1760162221058,0.0088676,112770.0,112740.0,0.0301519]
[1760162221282,0.18622089,112770.0,112760.0,0.04353]
[1760162221485,0.18622089,112770.0,112760.0,0.07859]
[1760162221617,0.72479935,112770.0,112760.0,0.07859]
[1760162221817,0.69896935,112770.0,112760.0,0.07859]
[1760162222068,0.72479935,112770.0,112760.0,0.04353]
[1760162222271,0.17736786,112760.0,112750.0,0.099094]
[1760162222410,0.17736786,112760.0,112750.0,0.05427]
[1760162222611,0.17736786,112760.0,112750.0,0.158474]
[1760162223065,0.51736786,112760.0,112750.0,0.158474]
[1760162227023,0.51738359,112750.0,112740.0,0.099094]
[1760162227263,1.05596205,112750.0,112740.0,0.12571411]
[1760162227662,1.05596205,112750.0,112740.0,0.16077411]
[1760162227858,1.03013205,112750.0,112740.0,0.16077411]
[1760162228687,1.01397205,112750.0,112740.0,0.16077411]
[1760162229293,0.51738359,112750.0,112740.0,0.16077411]
[1760162229668,0.34,112750.0,112740.0,0.16077411]
[1760162229919,0.34,112750.0,112740.0,0.33817343]
[1760162230144,0.34,112750.0,112740.0,0.25828943]
[1760162230319,0.34,112750.0,112740.0,0.36996431]
[1760162231321,0.34,112750.0,112740.0,0.25828943]
[1760162231873,0.18622089,112770.0,112750.0,0.17738127]
[1760162232076,0.17736786,112760.0,112750.0,0.27644794]
[1760162232419,0.18622089,112770.0,112750.0,0.30076794]
[1760162232601,0.18622089,112770.0,112760.0,0.05427]
[1760162233005,0.18622089,112770.0,112760.0,0.07859]
[1760162233957,0.52622089,112770.0,112760.0,0.07859]
[1760162234576,1.02280935,112770.0,112760.0,0.07859]
[1760162234929,1.06334935,112770.0,112760.0,0.04353]
[1760162235231,1.06334935,112770.0,112760.0,0.04361]
[1760162235400,1.06334935,112770.0,112760.0,0.01921]
[1760162236168,1.06334935,112770.0,112760.0,0.04361]
[1760162236881,0.51736786,112760.0,112750.0,0.13408667]
[1760162237083,0.51736786,112760.0,112750.0,0.09906667]
[1760162237084,1.01395632,112760.0,112750.0,0.09906667]
[1760162237283,1.03903632,112760.0,112750.0,0.12346667]
[1760162237814,1.01395632,112760.0,112750.0,0.1602116]
[1760162238130,0.51736786,112760.0,112750.0,0.1602116]
[1760162238432,1.01395632,112760.0,112750.0,0.1602116]
[1760162239617,1.01395632,112760.0,112750.0,0.1612116]
[1760162239818,0.51736786,112760.0,112750.0,0.1622116]
[1760162240021,0.51736786,112760.0,112750.0,0.08235493]
[1760162242058,0.51736786,112760.0,112750.0,0.19415427]
[1760162244316,0.51736786,112760.0,112750.0,0.22430617]
[1760162246080,0.51336786,112760.0,112750.0,0.22430617]
[1760162248017,0.336,112760.0,112750.0,0.40168976]
[1760162250632,0.1773364,112780.0,112770.0,0.0301519]
[1760162250840,0.1773364,112780.0,112770.0,0.12877449]
[1760162251186,0.5173364,112780.0,112770.0,0.18809449]
[1760162251542,0.1773364,112780.0,112770.0,0.18809449]
[1760162251739,0.1773364,112780.0,112770.0,0.1881833]
[1760162252614,0.5173364,112780.0,112770.0,0.1881833]
[1760162255318,0.31497762,112780.0,112770.0,0.1881833]
[1760162255672,0.1773364,112780.0,112770.0,0.10834071]
[1760162255953,0.1773364,112780.0,112770.0,0.28569284]
[1760162256275,0.1773364,112780.0,112770.0,0.10891559]
[1760162258528,0.18713484,112790.0,112770.0,0.10891559]
[1760162258780,0.18713484,112790.0,112780.0,0.05364]
[1760162258781,0.52713484,112790.0,112780.0,0.05364]
[1760162259083,0.52713484,112790.0,112780.0,0.0781]
[1760162260660,0.33730069,112790.0,112780.0,0.0781]
[1760162260969,0.52352406,112790.0,112780.0,0.0781]
[1760162264549,0.33730069,112790.0,112780.0,0.2855883]
[1760162264896,0.17730742,112800.0,112780.0,0.2855883]
[1760162265097,0.17730742,112800.0,112790.0,0.05508]
[1760162265531,0.1778821,112800.0,112790.0,0.08019]
[1760162266503,0.1778821,112800.0,112790.0,0.08119]
[1760162268981,0.88677487,112800.0,112790.0,0.001]
[1760162269218,0.89141115,112800.0,112790.0,0.001]
[1760162269420,0.20600838,112800.0,112790.0,0.02611]
[1760162269597,0.20600838,112800.0,112790.0,0.04543]
[1760162269811,0.2013721,112800.0,112790.0,0.04543]
[1760162271905,0.2013721,112800.0,112790.0,0.001]
[1760162272153,0.2342321,112800.0,112790.0,0.001]
[1760162272309,0.5413721,112800.0,112790.0,0.001]
[1760162272515,0.5413721,112800.0,112790.0,0.02588]
[1760162272716,0.5413721,112800.0,112790.0,0.04457]
[1760162274023,0.5413721,112800.0,112790.0,0.001]
[1760162274226,1.22787487,112800.0,112790.0,0.001]
[1760162277530,1.19501487,112800.0,112790.0,0.001]
[1760162277758,1.22787487,112800.0,112790.0,0.001]
[1760162286055,1.19501487,112800.0,112790.0,0.001]
[1760162286272,0.5178821,112800.0,112790.0,0.08133]
[1760162286481,1.19510487,112800.0,112790.0,0.04457]
[1760162286691,1.19510487,112800.0,112790.0,0.08133]
[1760162286939,1.17152487,112800.0,112790.0,0.08133]
[1760162287398,0.5178821,112800.0,112790.0,0.08133]
[1760162287609,0.5178821,112800.0,112790.0,0.33849327]
[1760162287839,0.5178821,112800.0,112790.0,0.16117259]
[1760162288054,0.5178821,112800.0,112790.0,0.33849327]
[1760162289175,0.5178821,112800.0,112790.0,0.16117259]
[1760162289611,0.00057468,112800.0,112790.0,0.36864517]
[1760162289826,0.00057468,112800.0,112790.0,0.28880258]
[1760162290042,0.17787964,112800.0,112790.0,0.28880258]
[1760162291128,0.17787964,112800.0,112790.0,0.1114819]
[1760162291558,0.17787964,112800.0,112790.0,0.19129707]
[1760162292039,0.17787964,112800.0,112790.0,0.22326153]
[1760162292255,0.00057468,112800.0,112790.0,0.40058221]
[1760162293137,0.17787964,112800.0,112790.0,0.40058221]
[1760162293386,0.00057468,112800.0,112790.0,0.40058221]
[1760162294037,0.00057468,112800.0,112790.0,0.28880258]
[1760162294458,0.00057468,112800.0,112790.0,0.40043282]
[1760162294807,0.00057468,112800.0,112790.0,0.28880258]
[1760162295384,0.00057468,112800.0,112790.0,0.40040133]
[1760162296076,0.17787964,112800.0,112790.0,0.40040133]
[1760162296282,0.17787964,112800.0,112790.0,0.22308065]
[1760162296420,0.17787964,112800.0,112790.0,0.40040133]
[1760162299573,0.17787964,112800.0,112790.0,0.19292875]
[1760162300476,0.17787964,112800.0,112790.0,0.08133]
[1760162303116,0.51787964,112800.0,112790.0,0.08133]
[1760162304710,0.32467472,112800.0,112790.0,0.08133]
[1760162304911,0.50197968,112800.0,112790.0,0.08133]
[1760162306696,0.17730496,112800.0,112790.0,0.08133]
[1760162309205,0.61850496,112800.0,112790.0,0.08133]
[1760162309394,1.19574773,112800.0,112790.0,0.01969]
[1760162309724,1.19574773,112800.0,112790.0,0.04474]
[1760162315613,1.03839369,112800.0,112790.0,0.04474]
[1760162317019,1.07034369,112800.0,112790.0,0.001]
[1760162317444,1.09703722,112800.0,112790.0,0.001]
[1760162318097,1.09703722,112800.0,112780.0,0.00594817]
[1760162318244,1.02976941,112790.0,112780.0,0.00594817]
[1760162318689,1.08651941,112790.0,112780.0,0.00594817]
[1760162318894,1.11321622,112790.0,112780.0,0.00594817]
[1760162320194,0.54401749,112790.0,112780.0,0.08585817]
[1760162320405,0.51732068,112790.0,112780.0,0.08585817]
[1760162321042,1.01360941,112790.0,112780.0,0.08585817]
[1760162321261,1.08541941,112790.0,112780.0,0.00594817]
[1760162321400,1.05401941,112790.0,112780.0,0.04884817]
[1760162321604,1.02921941,112790.0,112780.0,0.08585817]
[1760162324242,1.01360941,112790.0,112780.0,0.08585817]
[1760162329791,1.01278708,112790.0,112780.0,0.08585817]
[1760162330539,1.02801708,112790.0,112780.0,0.08585817]
[1760162332381,0.51649835,112790.0,112780.0,0.08585817]
[1760162332579,1.01278708,112790.0,112780.0,0.08585817]
[1760162336061,0.51649835,112790.0,112780.0,0.08585817]
[1760162337736,1.01278708,112790.0,112780.0,0.08585817]
[1760162338409,1.05163708,112790.0,112780.0,0.04884817]
[1760162339060,1.05163708,112790.0,112780.0,0.08582817]
[1760162339266,1.05163708,112790.0,112780.0,0.04884817]
[1760162339422,1.05163708,112790.0,112780.0,0.08582817]
[1760162339626,1.02801708,112790.0,112780.0,0.08582817]
[1760162340072,1.01278708,112790.0,112780.0,0.08582817]
[1760162340629,1.05163708,112790.0,112780.0,0.04884817]
[1760162341068,1.05163708,112790.0,112780.0,0.00594817]
[1760162341229,1.08265708,112790.0,112780.0,0.00594817]
[1760162342069,1.05163708,112790.0,112780.0,0.00594817]
[1760162342231,1.08265708,112790.0,112780.0,0.00594817]
[1760162343133,1.08265708,112790.0,112770.0,8.881e-05]
[1760162343267,0.67362513,112780.0,112770.0,8.881e-05]
[1760162343703,0.67362513,112780.0,112770.0,1e-08]
[1760162343704,0.74945531,112780.0,112770.0,1e-08]
[1760162343879,1.24574404,112780.0,112770.0,1e-08]
[1760162344080,1.27244579,112780.0,112770.0,1e-08]
[1760162345174,1.27344579,112780.0,112770.0,1e-08]